[Event "Early-Titled-Tuesday-Blitz-March-05-2024"]
[Site "Chess.com"]
[Date "2024.03.05"]
[Round "9"]
[White "enriquebutti"]
[Black "ajeale2"]
[Result "0-1"]
[WhiteElo "2223"]
[BlackElo "2499"]
[TimeControl "180+1"]
[EndTime "9:47:14 PST"]
[Termination "ajeale2 won by resignation"]

1. d4 {[%clk 0:03:00]} 1... e6 {[%clk 0:02:57.2]} 2. Nf3 {[%clk 0:02:59.1]} 2...
Nf6 {[%clk 0:02:55.8]} 3. e3 {[%clk 0:02:58.2]} 3... c5 {[%clk 0:02:54.5]} 4.
Bd3 {[%clk 0:02:57.5]} 4... b6 {[%clk 0:02:54.5]} 5. O-O {[%clk 0:02:56.9]} 5...
Bb7 {[%clk 0:02:54.7]} 6. b3 {[%clk 0:02:56.6]} 6... Be7 {[%clk 0:02:53.7]} 7.
Bb2 {[%clk 0:02:56.2]} 7... O-O {[%clk 0:02:54.3]} 8. c4 {[%clk 0:02:55.7]} 8...
cxd4 {[%clk 0:02:52.6]} 9. exd4 {[%clk 0:02:55.3]} 9... d5 {[%clk 0:02:52.9]}
10. Nc3 {[%clk 0:02:54.7]} 10... Nc6 {[%clk 0:02:47.5]} 11. Qe2 {[%clk
0:02:54.1]} 11... Re8 {[%clk 0:02:27.9]} 12. Rad1 {[%clk 0:02:51.7]} 12... Rc8
{[%clk 0:02:17.1]} 13. Qe3 {[%clk 0:02:34.9]} 13... Nb4 {[%clk 0:02:08.8]} 14.
Be2 {[%clk 0:02:30.8]} 14... Ne4 {[%clk 0:01:23.1]} 15. a3 {[%clk 0:02:24.3]}
15... Nxc3 {[%clk 0:01:10.9]} 16. Bxc3 {[%clk 0:02:23.3]} 16... Nc2 {[%clk
0:00:50.4]} 17. Qc1 {[%clk 0:02:11.8]} 17... Nxa3 {[%clk 0:00:48.4]} 18. Bb2
{[%clk 0:01:59.2]} 18... Nb5 {[%clk 0:00:47.7]} 19. Qa1 {[%clk 0:01:57.7]} 19...
Nd6 {[%clk 0:00:40.6]} 20. c5 {[%clk 0:01:47.3]} 20... bxc5 {[%clk 0:00:40.6]}
21. dxc5 {[%clk 0:01:46.7]} 21... Nf5 {[%clk 0:00:29.1]} 22. Bd3 {[%clk
0:01:37.3]} 22... Bf8 {[%clk 0:00:19.9]} 23. Bxf5 {[%clk 0:01:32]} 23... exf5
{[%clk 0:00:20.2]} 24. b4 {[%clk 0:01:31.7]} 24... a5 {[%clk 0:00:16.6]} 25.
bxa5 {[%clk 0:01:21.6]} 25... Ra8 {[%clk 0:00:13.6]} 26. Bc3 {[%clk 0:01:14]}
26... Qc8 {[%clk 0:00:10.9]} 27. Rc1 {[%clk 0:01:02.5]} 27... d4 {[%clk
0:00:07.6]} 28. Bxd4 {[%clk 0:01:01.8]} 28... Bxf3 {[%clk 0:00:06.4]} 29. gxf3
{[%clk 0:01:00]} 29... Qc6 {[%clk 0:00:05.5]} 30. Qc3 {[%clk 0:00:57.2]} 30...
Re6 {[%clk 0:00:06.2]} 31. Rfe1 {[%clk 0:00:53.1]} 31... Rg6+ {[%clk 0:00:06.2]}
32. Kf1 {[%clk 0:00:48.2]} 32... Qb5+ {[%clk 0:00:05.4]} 33. Qc4 {[%clk
0:00:47.4]} 33... Qxa5 {[%clk 0:00:05.6]} 34. c6 {[%clk 0:00:43.5]} 34... Qc7
{[%clk 0:00:03.1]} 35. Qd5 {[%clk 0:00:29.2]} 35... Qxh2 {[%clk 0:00:02.4]} 36.
Ke2 {[%clk 0:00:25.5]} 36... Re8+ {[%clk 0:00:01.5]} 37. Kd3 {[%clk 0:00:24.7]}
37... Rxe1 {[%clk 0:00:02.2]} 38. Rxe1 {[%clk 0:00:23.9]} 38... Rd6 {[%clk
0:00:02.9]} 39. c7 {[%clk 0:00:20]} 39... Rxd5 {[%clk 0:00:02]} 40. c8=Q {[%clk
0:00:19]} 40... Qxf2 {[%clk 0:00:01.9]} 41. Qc4 {[%clk 0:00:16.8]} 41... Rxd4+
{[%clk 0:00:02]} 42. Qxd4 {[%clk 0:00:16.5]} 42... Qxe1 {[%clk 0:00:02.9]} 43.
Qd7 {[%clk 0:00:15.6]} 43... Qe6 {[%clk 0:00:03.8]} 44. Qxe6 {[%clk 0:00:15.3]}
44... fxe6 {[%clk 0:00:04.7]} 45. Kd4 {[%clk 0:00:15.7]} 45... Kf7 {[%clk
0:00:05.5]} 46. Ke5 {[%clk 0:00:15.7]} 46... Be7 {[%clk 0:00:06.1]} 47. f4
{[%clk 0:00:15.8]} 47... h5 {[%clk 0:00:05.8]} 48. Kd4 {[%clk 0:00:15.1]} 48...
Kf6 {[%clk 0:00:06.5]} 49. Ke3 {[%clk 0:00:15]} 49... Bd6 {[%clk 0:00:07.4]} 50.
Kf3 {[%clk 0:00:14.9]} 50... h4 {[%clk 0:00:07.6]} 51. Ke3 {[%clk 0:00:14.6]}
51... g6 {[%clk 0:00:07.6]} 52. Kf3 {[%clk 0:00:14.4]} 52... e5 {[%clk 0:00:08]}
53. fxe5+ {[%clk 0:00:14.2]} 53... Bxe5 {[%clk 0:00:08.7]} 0-1

[Event "Early-Titled-Tuesday-Blitz-March-05-2024"]
[Site "Chess.com"]
[Date "2024.03.05"]
[Round "9"]
[White "AlexTruskavetsky"]
[Black "ActorXu"]
[Result "0-1"]
[WhiteElo "2707"]
[BlackElo "2854"]
[TimeControl "180+1"]
[EndTime "9:47:15 PST"]
[Termination "ActorXu won by checkmate"]

1. d4 {[%clk 0:03:00.9]} 1... Nf6 {[%clk 0:02:58.1]} 2. c4 {[%clk 0:03:00.1]}
2... e6 {[%clk 0:02:57.9]} 3. Nc3 {[%clk 0:02:59.8]} 3... Bb4 {[%clk 0:02:57.6]}
4. e3 {[%clk 0:03:00]} 4... b6 {[%clk 0:02:55.9]} 5. a3 {[%clk 0:03:00]} 5...
Bxc3+ {[%clk 0:02:55.7]} 6. bxc3 {[%clk 0:03:00.9]} 6... Bb7 {[%clk 0:02:56.1]}
7. f3 {[%clk 0:03:01.6]} 7... d6 {[%clk 0:02:48.1]} 8. e4 {[%clk 0:03:01.5]}
8... e5 {[%clk 0:02:47.2]} 9. Bd3 {[%clk 0:03:02]} 9... Nc6 {[%clk 0:02:47.3]}
10. Ne2 {[%clk 0:03:02.2]} 10... O-O {[%clk 0:02:40.9]} 11. O-O {[%clk
0:03:00.8]} 11... Qe7 {[%clk 0:02:31.2]} 12. Qc2 {[%clk 0:02:50.6]} 12... Rae8
{[%clk 0:02:23.5]} 13. Be3 {[%clk 0:02:14.1]} 13... Nd7 {[%clk 0:02:15.1]} 14.
Ng3 {[%clk 0:02:10.7]} 14... f6 {[%clk 0:02:10.3]} 15. f4 {[%clk 0:02:09.3]}
15... Kh8 {[%clk 0:02:10.1]} 16. Rf2 {[%clk 0:01:58]} 16... Na5 {[%clk
0:02:07.2]} 17. Raf1 {[%clk 0:01:56.1]} 17... exf4 {[%clk 0:02:06.7]} 18. Rxf4
{[%clk 0:01:53.9]} 18... Ba6 {[%clk 0:02:04.7]} 19. Rh4 {[%clk 0:01:41.1]} 19...
Bxc4 {[%clk 0:01:53.4]} 20. e5 {[%clk 0:01:19.8]} 20... f5 {[%clk 0:01:36]} 21.
Rxh7+ {[%clk 0:00:22.6]} 21... Kxh7 {[%clk 0:01:34.5]} 22. Nxf5 {[%clk
0:00:23.1]} 22... Bxd3 {[%clk 0:01:16.2]} 23. Qxd3 {[%clk 0:00:22.6]} 23... Rxf5
{[%clk 0:01:16.8]} 24. Qxf5+ {[%clk 0:00:20.5]} 24... Kg8 {[%clk 0:01:14.1]} 25.
Rf3 {[%clk 0:00:12.2]} 25... Rf8 {[%clk 0:01:10]} 26. exd6 {[%clk 0:00:08.5]}
26... Qxd6 {[%clk 0:00:49.6]} 27. Qh5 {[%clk 0:00:08.9]} 27... Rxf3 {[%clk
0:00:49]} 28. Qxf3 {[%clk 0:00:09.8]} 28... c6 {[%clk 0:00:38.9]} 29. g4 {[%clk
0:00:07.3]} 29... Nc4 {[%clk 0:00:37.1]} 30. Bf2 {[%clk 0:00:06.9]} 30... Qd5
{[%clk 0:00:34]} 31. Qf4 {[%clk 0:00:06.8]} 31... Nf6 {[%clk 0:00:31.8]} 32.
Qb8+ {[%clk 0:00:06.3]} 32... Kh7 {[%clk 0:00:31.5]} 33. h3 {[%clk 0:00:06.4]}
33... Ne4 {[%clk 0:00:30.5]} 34. Qf4 {[%clk 0:00:05.7]} 34... Nxf2 {[%clk
0:00:29.9]} 35. Kxf2 {[%clk 0:00:06.6]} 35... Nxa3 {[%clk 0:00:27.7]} 36. h4
{[%clk 0:00:07]} 36... Nc4 {[%clk 0:00:26.4]} 37. h5 {[%clk 0:00:06.8]} 37...
Nd6 {[%clk 0:00:24.9]} 38. Kg3 {[%clk 0:00:03.3]} 38... Ne4+ {[%clk 0:00:24.4]}
39. Kh3 {[%clk 0:00:01.9]} 39... Ng5+ {[%clk 0:00:24.3]} 40. Kg3 {[%clk
0:00:02.3]} 40... b5 {[%clk 0:00:21.9]} 41. Qc7 {[%clk 0:00:01.5]} 41... a5
{[%clk 0:00:18.3]} 42. Kf2 {[%clk 0:00:01.6]} 42... a4 {[%clk 0:00:18]} 43. Qf4
{[%clk 0:00:01.6]} 43... a3 {[%clk 0:00:18.1]} 44. Qd2 {[%clk 0:00:01.5]} 44...
a2 {[%clk 0:00:18.1]} 45. Qc2+ {[%clk 0:00:02]} 45... Ne4+ {[%clk 0:00:17.4]}
46. Ke3 {[%clk 0:00:02.4]} 46... a1=Q {[%clk 0:00:17.4]} 47. g5 {[%clk
0:00:01.5]} 47... Qe1+ {[%clk 0:00:16.4]} 48. Kf3 {[%clk 0:00:02.1]} 48... Qxc3+
{[%clk 0:00:14.5]} 49. Kf4 {[%clk 0:00:01.1]} 49... Qxc2 {[%clk 0:00:14.1]} 50.
g6+ {[%clk 0:00:02]} 50... Kh6 {[%clk 0:00:14.2]} 51. Kg4 {[%clk 0:00:02.7]}
51... Qg5+ {[%clk 0:00:13.9]} 52. Kf3 {[%clk 0:00:02.4]} 52... Qcg2# {[%clk
0:00:13.7]} 0-1

[Event "Early-Titled-Tuesday-Blitz-March-05-2024"]
[Site "Chess.com"]
[Date "2024.03.05"]
[Round "9"]
[White "dianamirza"]
[Black "ChessFanNM"]
[Result "0-1"]
[WhiteElo "2008"]
[BlackElo "2256"]
[TimeControl "180+1"]
[EndTime "9:47:16 PST"]
[Termination "ChessFanNM won by resignation"]

1. e4 {[%clk 0:02:55.7]} 1... c6 {[%clk 0:02:59.2]} 2. d4 {[%clk 0:02:52.2]}
2... d5 {[%clk 0:03:00.1]} 3. exd5 {[%clk 0:02:53.1]} 3... cxd5 {[%clk 0:03:00]}
4. Bd3 {[%clk 0:02:51.7]} 4... Nc6 {[%clk 0:02:58.8]} 5. c3 {[%clk 0:02:48.3]}
5... Nf6 {[%clk 0:02:54.7]} 6. Bf4 {[%clk 0:02:47.7]} 6... Bg4 {[%clk
0:02:54.1]} 7. Qb3 {[%clk 0:02:46.1]} 7... Qc8 {[%clk 0:02:52.9]} 8. Nd2 {[%clk
0:02:44.5]} 8... e6 {[%clk 0:02:45.4]} 9. Ngf3 {[%clk 0:02:37.5]} 9... Be7
{[%clk 0:02:41.6]} 10. O-O {[%clk 0:02:35]} 10... O-O {[%clk 0:02:40.8]} 11. h3
{[%clk 0:02:35.5]} 11... Bh5 {[%clk 0:02:39.8]} 12. Ne5 {[%clk 0:02:35]} 12...
Nxe5 {[%clk 0:02:11.5]} 13. Bxe5 {[%clk 0:02:29.4]} 13... Bg6 {[%clk 0:02:10]}
14. Bxg6 {[%clk 0:02:27.6]} 14... hxg6 {[%clk 0:02:08.1]} 15. f4 {[%clk
0:02:27.1]} 15... a6 {[%clk 0:01:50.5]} 16. g4 {[%clk 0:02:23.7]} 16... b5
{[%clk 0:01:46.1]} 17. Nf3 {[%clk 0:02:22.9]} 17... Qc4 {[%clk 0:01:32.9]} 18.
Qxc4 {[%clk 0:02:22.6]} 18... bxc4 {[%clk 0:01:27.9]} 19. b3 {[%clk 0:02:21.2]}
19... Rfc8 {[%clk 0:01:25.7]} 20. Rac1 {[%clk 0:02:18.4]} 20... Ne4 {[%clk
0:01:25.2]} 21. b4 {[%clk 0:02:14.2]} 21... f6 {[%clk 0:01:24]} 22. Nh4 {[%clk
0:02:00.5]} 22... Kf7 {[%clk 0:00:52.8]} 23. f5 {[%clk 0:01:55.7]} 23... fxe5
{[%clk 0:00:52.2]} 24. fxe6+ {[%clk 0:01:54.7]} 24... Kxe6 {[%clk 0:00:46.6]}
25. Nxg6 {[%clk 0:01:54.7]} 25... exd4 {[%clk 0:00:37.9]} 26. cxd4 {[%clk
0:01:53.2]} 26... Bg5 {[%clk 0:00:34.7]} 27. Rce1 {[%clk 0:01:49.5]} 27... c3
{[%clk 0:00:26.6]} 28. h4 {[%clk 0:01:40.9]} 28... Bf6 {[%clk 0:00:25.3]} 29.
Nf4+ {[%clk 0:01:37.9]} 29... Kd6 {[%clk 0:00:25.2]} 30. Nxd5 {[%clk 0:01:33.3]}
30... Kxd5 {[%clk 0:00:22.5]} 31. Rf5+ {[%clk 0:01:33.3]} 31... Kxd4 {[%clk
0:00:22.6]} 32. Rf4 {[%clk 0:01:28.9]} 32... Re8 {[%clk 0:00:21.8]} 33. g5
{[%clk 0:01:27.2]} 33... Bd8 {[%clk 0:00:21]} 34. Kg2 {[%clk 0:01:17.1]} 34...
c2 {[%clk 0:00:20.6]} 35. Kf3 {[%clk 0:01:16.3]} 35... Rc8 {[%clk 0:00:19.7]}
36. Rc1 {[%clk 0:01:06.7]} 36... Kd3 {[%clk 0:00:17.3]} 37. Rf7 {[%clk 0:01:05]}
37... Kd2 {[%clk 0:00:16.2]} 38. Rh1 {[%clk 0:00:55.9]} 38... c1=Q {[%clk
0:00:14.7]} 39. Rd7+ {[%clk 0:00:56.2]} 39... Kc2 {[%clk 0:00:14.5]} 40. Rxc1+
{[%clk 0:00:49.1]} 40... Kxc1 {[%clk 0:00:15.4]} 41. Rxg7 {[%clk 0:00:48.9]}
41... Rc3+ {[%clk 0:00:14.2]} 42. Kf4 {[%clk 0:00:48.4]} 42... Bc7+ {[%clk
0:00:14.3]} 43. Kf5 {[%clk 0:00:46.6]} 43... Rf3+ {[%clk 0:00:14.2]} 44. Kg4
{[%clk 0:00:46]} 44... Rg3+ {[%clk 0:00:13.2]} 45. Kh5 {[%clk 0:00:46.2]} 45...
Bf4 {[%clk 0:00:12.3]} 46. Rf7 {[%clk 0:00:41.9]} 46... Bxg5 {[%clk 0:00:10.6]}
47. hxg5 {[%clk 0:00:37.8]} 47... Rxg5+ {[%clk 0:00:09.7]} 48. Kh6 {[%clk
0:00:36.1]} 48... Rh8+ {[%clk 0:00:09.6]} 49. Rh7 {[%clk 0:00:35.4]} 49... Rxh7+
{[%clk 0:00:09.6]} 50. Kxh7 {[%clk 0:00:36.3]} 50... Rb5 {[%clk 0:00:09.5]} 51.
Kg6 {[%clk 0:00:36.8]} 51... Rxb4 {[%clk 0:00:09.7]} 52. Kf5 {[%clk 0:00:37.7]}
52... Ra4 {[%clk 0:00:10.3]} 53. Ke5 {[%clk 0:00:37.4]} 53... Kc2 {[%clk
0:00:11.2]} 54. Kf4 {[%clk 0:00:36.1]} 54... Kb2 {[%clk 0:00:12.1]} 55. Ke5
{[%clk 0:00:37]} 55... Kc3 {[%clk 0:00:11.7]} 56. Kf5 {[%clk 0:00:36.8]} 56...
Kd3 {[%clk 0:00:11.9]} 57. Kg4 {[%clk 0:00:37.7]} 57... Rxa2 {[%clk 0:00:12.1]}
58. Kf5 {[%clk 0:00:38.2]} 58... Ra4 {[%clk 0:00:12.5]} 59. Ke6 {[%clk
0:00:39.1]} 59... Rd4 {[%clk 0:00:12.6]} 60. Ke5 {[%clk 0:00:39.3]} 60... a5
{[%clk 0:00:13.1]} 61. Ke6 {[%clk 0:00:39.7]} 61... a4 {[%clk 0:00:13.4]} 62.
Ke5 {[%clk 0:00:40.6]} 62... a3 {[%clk 0:00:13.8]} 63. Ke6 {[%clk 0:00:41.5]}
63... a2 {[%clk 0:00:14.2]} 64. Ke5 {[%clk 0:00:42.4]} 64... a1=Q {[%clk
0:00:13.9]} 65. Ke6 {[%clk 0:00:43.3]} 65... Qa6+ {[%clk 0:00:13.9]} 66. Ke5
{[%clk 0:00:44.2]} 66... Qb5+ {[%clk 0:00:13.6]} 67. Ke6 {[%clk 0:00:45.1]}
67... Rd6+ {[%clk 0:00:13.3]} 68. Ke7 {[%clk 0:00:35.7]} 68... Qe5+ {[%clk
0:00:12.9]} 0-1

[Event "Early-Titled-Tuesday-Blitz-March-05-2024"]
[Site "Chess.com"]
[Date "2024.03.05"]
[Round "9"]
[White "DeArron_Fox"]
[Black "K_A_S_T_O_R"]
[Result "1/2-1/2"]
[WhiteElo "2541"]
[BlackElo "2787"]
[TimeControl "180+1"]
[EndTime "9:47:20 PST"]
[Termination "Game drawn - insufficient material"]

1. d4 {[%clk 0:02:58.3]} 1... Nf6 {[%clk 0:02:59.2]} 2. c4 {[%clk 0:02:57.1]}
2... e6 {[%clk 0:02:59.3]} 3. Nf3 {[%clk 0:02:42.4]} 3... c5 {[%clk 0:02:58.2]}
4. d5 {[%clk 0:02:42.1]} 4... d6 {[%clk 0:02:57.7]} 5. Nc3 {[%clk 0:02:41.9]}
5... exd5 {[%clk 0:02:58.3]} 6. cxd5 {[%clk 0:02:42.5]} 6... g6 {[%clk
0:02:58.9]} 7. Nd2 {[%clk 0:02:42.8]} 7... Nbd7 {[%clk 0:02:52.1]} 8. e4 {[%clk
0:02:41.6]} 8... Bg7 {[%clk 0:02:51.7]} 9. Be2 {[%clk 0:02:41.4]} 9... O-O
{[%clk 0:02:52.1]} 10. O-O {[%clk 0:02:41.2]} 10... Re8 {[%clk 0:02:50.9]} 11.
Re1 {[%clk 0:02:36.9]} 11... a6 {[%clk 0:02:37.6]} 12. a4 {[%clk 0:02:34.9]}
12... Rb8 {[%clk 0:02:38]} 13. Qc2 {[%clk 0:02:24.4]} 13... Ne5 {[%clk
0:02:25.4]} 14. h3 {[%clk 0:02:19.6]} 14... g5 {[%clk 0:02:24.1]} 15. Nf1 {[%clk
0:02:09.4]} 15... g4 {[%clk 0:02:20.3]} 16. h4 {[%clk 0:02:07.2]} 16... Nfd7
{[%clk 0:02:15.5]} 17. h5 {[%clk 0:01:57.2]} 17... Qh4 {[%clk 0:02:10.8]} 18.
Ng3 {[%clk 0:01:54.7]} 18... Nf6 {[%clk 0:02:10.3]} 19. Bf4 {[%clk 0:01:20.2]}
19... Nxh5 {[%clk 0:02:09.4]} 20. Nxh5 {[%clk 0:01:21.1]} 20... Qxh5 {[%clk
0:02:09.9]} 21. Nd1 {[%clk 0:01:16.9]} 21... Qg6 {[%clk 0:02:02.9]} 22. Ne3
{[%clk 0:01:14.1]} 22... h5 {[%clk 0:02:02.1]} 23. b4 {[%clk 0:00:53.3]} 23...
cxb4 {[%clk 0:01:43.6]} 24. Qc7 {[%clk 0:00:50.6]} 24... Ra8 {[%clk 0:01:43.2]}
25. Rab1 {[%clk 0:00:24.2]} 25... Qxe4 {[%clk 0:01:35.4]} 26. Bg3 {[%clk
0:00:13.7]} 26... Qg6 {[%clk 0:01:30.2]} 27. Rxb4 {[%clk 0:00:13.2]} 27... Bf8
{[%clk 0:01:17.3]} 28. Rb6 {[%clk 0:00:10.8]} 28... Qf6 {[%clk 0:01:12.5]} 29.
Bh2 {[%clk 0:00:02.7]} 29... Qd8 {[%clk 0:01:12.3]} 30. Qxd8 {[%clk 0:00:02.5]}
30... Rxd8 {[%clk 0:01:12.9]} 31. Rc1 {[%clk 0:00:02.7]} 31... Nd7 {[%clk
0:01:05.7]} 32. Rb2 {[%clk 0:00:02.2]} 32... Nc5 {[%clk 0:01:06]} 33. a5 {[%clk
0:00:02.5]} 33... b5 {[%clk 0:01:03.2]} 34. axb6 {[%clk 0:00:02.6]} 34... Bb7
{[%clk 0:01:03.9]} 35. Nc4 {[%clk 0:00:02.2]} 35... a5 {[%clk 0:01:04.5]} 36.
Bf1 {[%clk 0:00:01.4]} 36... a4 {[%clk 0:01:04.1]} 37. Ra2 {[%clk 0:00:01.7]}
37... Nb3 {[%clk 0:01:02.5]} 38. Rb1 {[%clk 0:00:01.4]} 38... Bxd5 {[%clk
0:01:02.5]} 39. Ne3 {[%clk 0:00:02]} 39... Be6 {[%clk 0:00:58.8]} 40. Bc4 {[%clk
0:00:02.7]} 40... Rdb8 {[%clk 0:00:57.8]} 41. Bxb3 {[%clk 0:00:02.1]} 41... Bxb3
{[%clk 0:00:56.4]} 42. Ra3 {[%clk 0:00:02.3]} 42... Rxb6 {[%clk 0:00:56.8]} 43.
Nc4 {[%clk 0:00:01.5]} 43... Rba6 {[%clk 0:00:56.2]} 44. Nxd6 {[%clk 0:00:01.8]}
44... Bxd6 {[%clk 0:00:55.6]} 45. Bxd6 {[%clk 0:00:02.7]} 45... Rxd6 {[%clk
0:00:55.8]} 46. Rbxb3 {[%clk 0:00:03.4]} 46... axb3 {[%clk 0:00:52.7]} 47. Rxa8+
{[%clk 0:00:04.3]} 47... Kg7 {[%clk 0:00:53.1]} 48. Rb8 {[%clk 0:00:05]} 48...
Rd3 {[%clk 0:00:52.2]} 49. Rb5 {[%clk 0:00:05]} 49... Kg6 {[%clk 0:00:51.9]} 50.
Kh2 {[%clk 0:00:03.7]} 50... f5 {[%clk 0:00:52.8]} 51. Rb6+ {[%clk 0:00:03.3]}
51... Kg5 {[%clk 0:00:53]} 52. g3 {[%clk 0:00:02.5]} 52... h4 {[%clk 0:00:53.4]}
53. gxh4+ {[%clk 0:00:02.1]} 53... Kxh4 {[%clk 0:00:54.3]} 54. Rb8 {[%clk
0:00:02.5]} 54... Kg5 {[%clk 0:00:54.3]} 55. Rb4 {[%clk 0:00:02.1]} 55... f4
{[%clk 0:00:53.6]} 56. Kg2 {[%clk 0:00:02.8]} 56... Kf6 {[%clk 0:00:53.8]} 57.
Rxf4+ {[%clk 0:00:02.2]} 57... Ke5 {[%clk 0:00:53.7]} 58. Rxg4 {[%clk
0:00:02.2]} 58... Rd4 {[%clk 0:00:52.4]} 59. Rg5+ {[%clk 0:00:02.7]} 59... Kd6
{[%clk 0:00:50.8]} 60. Rb5 {[%clk 0:00:03.6]} 60... Rd3 {[%clk 0:00:51.7]} 61.
f4 {[%clk 0:00:02.7]} 61... Kc6 {[%clk 0:00:52.1]} 62. Rb8 {[%clk 0:00:02.5]}
62... Kd5 {[%clk 0:00:51.9]} 63. Kf2 {[%clk 0:00:01.9]} 63... Ke4 {[%clk
0:00:52.3]} 64. Rb4+ {[%clk 0:00:02.5]} 64... Kf5 {[%clk 0:00:52.3]} 65. Ke2
{[%clk 0:00:03.1]} 65... Rh3 {[%clk 0:00:51.9]} 66. Kd2 {[%clk 0:00:03.7]} 66...
Rf3 {[%clk 0:00:52.2]} 67. Ke2 {[%clk 0:00:02.3]} 67... Rg3 {[%clk 0:00:51.2]}
68. Kd2 {[%clk 0:00:02.7]} 68... Rh3 {[%clk 0:00:50.7]} 69. Kc1 {[%clk
0:00:02.8]} 69... Rf3 {[%clk 0:00:50.4]} 70. Kb2 {[%clk 0:00:03.2]} 70... Rxf4
{[%clk 0:00:51]} 71. Rxf4+ {[%clk 0:00:03.5]} 71... Kxf4 {[%clk 0:00:51.5]} 72.
Kxb3 {[%clk 0:00:04.4]} 1/2-1/2

[Event "Early-Titled-Tuesday-Blitz-March-05-2024"]
[Site "Chess.com"]
[Date "2024.03.05"]
[Round "9"]
[White "GAusal"]
[Black "abelmat"]
[Result "1-0"]
[WhiteElo "2285"]
[BlackElo "2052"]
[TimeControl "180+1"]
[EndTime "9:47:24 PST"]
[Termination "GAusal won on time"]

1. d4 {[%clk 0:03:00.9]} 1... d5 {[%clk 0:02:59.4]} 2. Nf3 {[%clk 0:03:00.9]}
2... e6 {[%clk 0:02:58.5]} 3. Bf4 {[%clk 0:03:01.4]} 3... Nf6 {[%clk 0:02:58]}
4. e3 {[%clk 0:03:00.5]} 4... Bd6 {[%clk 0:02:53]} 5. Ne5 {[%clk 0:02:59.6]}
5... O-O {[%clk 0:02:52.4]} 6. Bd3 {[%clk 0:02:59.6]} 6... b6 {[%clk 0:02:52.2]}
7. c3 {[%clk 0:02:59.6]} 7... Bb7 {[%clk 0:02:52.6]} 8. h4 {[%clk 0:02:59.4]}
8... c5 {[%clk 0:02:52.6]} 9. Nd2 {[%clk 0:02:58.3]} 9... Nc6 {[%clk 0:02:51.5]}
10. Nxc6 {[%clk 0:02:51.7]} 10... Bxc6 {[%clk 0:02:50.8]} 11. Bxd6 {[%clk
0:02:51.3]} 11... Qxd6 {[%clk 0:02:50.7]} 12. h5 {[%clk 0:02:49.1]} 12... h6
{[%clk 0:02:48.5]} 13. Nf3 {[%clk 0:02:46.6]} 13... Nd7 {[%clk 0:02:46]} 14. Bc2
{[%clk 0:02:42.3]} 14... Rfe8 {[%clk 0:02:42.6]} 15. Qd3 {[%clk 0:02:41.6]}
15... Nf8 {[%clk 0:02:41.3]} 16. Ne5 {[%clk 0:02:40.2]} 16... Bb7 {[%clk
0:02:36.1]} 17. O-O {[%clk 0:02:37.2]} 17... a5 {[%clk 0:02:35.1]} 18. f4 {[%clk
0:02:36.3]} 18... Ba6 {[%clk 0:02:33.3]} 19. Qd2 {[%clk 0:02:32.4]} 19... Bxf1
{[%clk 0:02:32.2]} 20. Rxf1 {[%clk 0:02:32.9]} 20... b5 {[%clk 0:02:29.9]} 21.
f5 {[%clk 0:02:31.8]} 21... exf5 {[%clk 0:02:12.9]} 22. Rxf5 {[%clk 0:02:27.1]}
22... Re7 {[%clk 0:02:04.5]} 23. Qf2 {[%clk 0:02:24.4]} 23... f6 {[%clk
0:01:55.2]} 24. Nd3 {[%clk 0:02:17.1]} 24... c4 {[%clk 0:01:45.7]} 25. Nf4
{[%clk 0:02:16]} 25... Rae8 {[%clk 0:01:34.7]} 26. Rxd5 {[%clk 0:02:04.1]} 26...
Qb8 {[%clk 0:01:27.5]} 27. e4 {[%clk 0:02:03]} 27... Rd8 {[%clk 0:00:57.6]} 28.
Rc5 {[%clk 0:01:54.6]} 28... Ne6 {[%clk 0:00:53.8]} 29. Nxe6 {[%clk 0:01:43.1]}
29... Rxe6 {[%clk 0:00:52.5]} 30. Qf5 {[%clk 0:01:42.3]} 30... Rb6 {[%clk
0:00:39.9]} 31. e5 {[%clk 0:01:42]} 31... b4 {[%clk 0:00:38.3]} 32. Qh7+ {[%clk
0:01:41]} 32... Kf7 {[%clk 0:00:37.6]} 33. Bg6+ {[%clk 0:01:39.5]} 33... Ke6
{[%clk 0:00:27.2]} 34. Qxg7 {[%clk 0:01:36.8]} 34... Rf8 {[%clk 0:00:24.7]} 35.
Rc7 {[%clk 0:01:21.4]} 35... Qd8 {[%clk 0:00:20]} 36. Qxh6 {[%clk 0:00:56.8]}
36... fxe5 {[%clk 0:00:15]} 37. Be4+ {[%clk 0:00:47.5]} 37... Rf6 {[%clk
0:00:15]} 38. Qh7 {[%clk 0:00:46.1]} 38... Rd6 {[%clk 0:00:11.9]} 39. d5+ {[%clk
0:00:45.2]} 39... Rxd5 {[%clk 0:00:11]} 40. Bxd5+ {[%clk 0:00:45.4]} 40... Qxd5
{[%clk 0:00:11.9]} 41. Qe7+ {[%clk 0:00:43.3]} 41... Kf5 {[%clk 0:00:11.7]} 42.
Rd7 {[%clk 0:00:43.1]} 42... Qe4 {[%clk 0:00:09.9]} 43. Rd1 {[%clk 0:00:41.2]}
43... Qe3+ {[%clk 0:00:08.9]} 44. Kh1 {[%clk 0:00:39.5]} 44... Qf4 {[%clk
0:00:08]} 45. Qd7+ {[%clk 0:00:37.3]} 45... Kg5 {[%clk 0:00:07.9]} 46. Qg7+
{[%clk 0:00:34.8]} 46... Kh4 {[%clk 0:00:07]} 47. Qe7 {[%clk 0:00:25]} 47... Kg3
{[%clk 0:00:05.5]} 48. Qg7+ {[%clk 0:00:23.1]} 48... Kh4 {[%clk 0:00:04.3]} 49.
Qe7 {[%clk 0:00:19.2]} 49... Kg3 {[%clk 0:00:03.6]} 50. Re1 {[%clk 0:00:18]}
50... Qh4+ {[%clk 0:00:02.5]} 51. Kg1 {[%clk 0:00:17.6]} 1-0